bitfinex/quotes_BTCUSD_20250127
["timestamp","ask_amount","ask_price","bid_price","bid_amount"]
[1737969438418,4.5e-07,99488.0,99487.0,1.92112029]
[1737969439296,4.5e-07,99488.0,99487.0,1.93138455]
[1737969439654,4.5e-07,99488.0,99487.0,1.93238455]
[1737969440348,4.5e-07,99488.0,99487.0,0.43238455]
[1737969440552,4.5e-07,99488.0,99487.0,0.93238455]
[1737969440959,4.5e-07,99488.0,99487.0,0.90938455]
[1737969441129,4.5e-07,99488.0,99487.0,0.91076029]
[1737969442003,4.5e-07,99488.0,99487.0,0.76076029]
[1737969442359,4.5e-07,99488.0,99487.0,0.75976029]
[1737969442577,4.5e-07,99488.0,99487.0,0.76076029]
[1737969443266,4.5e-07,99488.0,99487.0,0.74912029]
[1737969444184,0.0004081,99488.0,99487.0,0.74912029]
[1737969444384,0.0004081,99488.0,99487.0,0.651773]
[1737969444986,0.00035297,99488.0,99487.0,0.651773]
[1737969445420,0.00035297,99488.0,99487.0,0.650773]
[1737969445743,0.00035297,99488.0,99487.0,0.651773]
[1737969446091,0.00035297,99488.0,99487.0,0.650773]
[1737969446319,0.00035297,99488.0,99487.0,0.651773]
[1737969447930,0.00035297,99488.0,99487.0,0.652773]
[1737969448577,0.00035297,99488.0,99487.0,0.651773]
[1737969448871,0.00035297,99488.0,99487.0,0.657773]
[1737969449216,0.00035297,99488.0,99487.0,0.651773]
[1737969449422,0.00035297,99488.0,99487.0,0.650773]
[1737969449621,0.00035297,99488.0,99487.0,0.654773]
[1737969449824,0.0001416,99489.0,99488.0,0.173771]
[1737969450030,0.0001416,99489.0,99488.0,0.27111829]
[1737969450242,0.0001416,99489.0,99488.0,1.77111829]
[1737969450443,0.0001416,99489.0,99488.0,1.74811829]
[1737969451278,0.0001416,99489.0,99488.0,1.92111829]
[1737969451490,0.0001416,99489.0,99488.0,2.09009829]
[1737969452029,0.0001416,99489.0,99488.0,2.09609829]
[1737969452428,6e-07,99489.0,99488.0,2.09009829]
[1737969452658,0.21199467,99519.0,99518.0,0.150726]
[1737969452860,0.0001415,99527.0,99526.0,0.150714]
[1737969453155,0.00063443,99527.0,99526.0,0.24806129]
[1737969453357,0.02063443,99527.0,99526.0,0.24806129]
[1737969454156,0.02063443,99527.0,99526.0,0.150714]
[1737969454340,0.01063443,99527.0,99526.0,0.150714]
[1737969454952,0.01063443,99527.0,99526.0,0.150713]
[1737969455158,0.01063443,99522.0,99521.0,0.150721]
[1737969455362,0.08953443,99522.0,99521.0,0.150721]
[1737969455791,0.01063443,99520.0,99518.0,0.200968]
[1737969456018,0.01063443,99520.0,99519.0,0.150724]
[1737969456575,0.01063443,99525.0,99520.0,0.200964]
[1737969456774,0.0789,99531.0,99530.0,0.150708]
[1737969457761,0.08953443,99531.0,99530.0,0.150708]
[1737969458004,0.08953443,99531.0,99524.0,0.200956]
[1737969458005,0.01063443,99525.0,99524.0,0.200956]
[1737969458250,0.01063443,99531.0,99530.0,0.150708]
[1737969458460,0.01076197,99535.0,99534.0,0.150702]
[1737969458843,0.00012754,99535.0,99534.0,0.150702]
[1737969459054,0.01076197,99535.0,99534.0,0.150702]
[1737969459256,0.00012754,99535.0,99534.0,0.150702]
[1737969459662,0.00012754,99535.0,99534.0,0.151702]
[1737969460279,0.00012754,99535.0,99534.0,0.24904929]
[1737969460415,0.01076197,99535.0,99534.0,0.151702]
[1737969461438,0.01076197,99535.0,99534.0,0.150702]
[1737969461647,0.01076197,99535.0,99534.0,0.151702]
[1737969461829,0.01076197,99535.0,99534.0,0.150702]
[1737969462436,0.01076197,99535.0,99534.0,0.152702]
[1737969462703,0.01063443,99524.0,99523.0,0.200958]
[1737969462888,0.01063443,99524.0,99523.0,0.351676]
[1737969464795,0.01063443,99522.0,99521.0,0.150721]
[1737969464972,0.08793443,99522.0,99521.0,0.150721]
[1737969465984,0.01063443,99524.0,99523.0,0.150718]
[1737969468433,0.01063443,99524.0,99523.0,0.151718]
[1737969468711,0.01063443,99524.0,99523.0,0.150718]
[1737969469085,0.01077593,99524.0,99523.0,0.150718]
[1737969469630,0.01063443,99520.0,99519.0,0.200965]
[1737969471523,0.0001415,99524.0,99519.0,0.200965]
[1737969471755,0.01063443,99520.0,99519.0,0.201965]
[1737969472515,0.01063443,99520.0,99519.0,0.20080084]
[1737969473695,0.01063443,99520.0,99519.0,0.001]
[1737969473814,0.01063443,99520.0,99519.0,0.151724]
[1737969474397,0.01063443,99520.0,99519.0,0.001]
[1737969474750,0.01063443,99520.0,99519.0,0.151724]
[1737969476073,0.01063443,99520.0,99519.0,0.150724]
[1737969476479,0.01063443,99520.0,99519.0,0.151724]
[1737969477006,0.01063443,99520.0,99519.0,0.001]
[1737969477151,0.01063443,99520.0,99519.0,0.151724]
[1737969477758,0.01063443,99520.0,99519.0,0.150724]
[1737969478862,0.01063443,99520.0,99508.0,1.5]
[1737969479061,0.01063443,99520.0,99519.0,0.150724]
[1737969479738,0.01063443,99509.0,99508.0,1.5]
[1737969479943,0.01063443,99514.0,99513.0,0.150734]
[1737969481252,0.08793443,99514.0,99513.0,0.150734]
[1737969481453,0.08793443,99514.0,99513.0,0.151734]
[1737969481979,0.51307443,99514.0,99513.0,0.151734]
[1737969483662,0.51307443,99514.0,99513.0,1.651734]
[1737969484503,0.51307443,99514.0,99513.0,0.151734]
[1737969484905,1.15784893,99514.0,99513.0,0.01850158]
[1737969485074,1.00711693,99514.0,99513.0,0.01850158]
[1737969485263,1.15784893,99514.0,99513.0,0.01850158]
[1737969485902,0.01063443,99506.0,99505.0,0.150746]
[1737969487588,0.51307443,99506.0,99505.0,0.150746]
[1737969489032,0.51307443,99506.0,99505.0,0.151746]
[1737969489411,0.66381843,99506.0,99505.0,0.001]
[1737969489922,0.59547443,99506.0,99505.0,0.001]
[1737969490544,0.74621843,99506.0,99505.0,0.001]
[1737969490763,0.01063443,99495.0,99494.0,0.0009866]
[1737969491260,0.51307443,99495.0,99493.0,0.00029715]
[1737969491463,0.51307443,99495.0,99494.0,0.150762]
[1737969492006,0.51322213,99495.0,99494.0,0.150762]
[1737969492618,0.51322213,99495.0,99494.0,0.152762]
[1737969493019,0.51322213,99495.0,99494.0,0.150762]
[1737969493227,0.51322213,99495.0,99494.0,0.152762]
[1737969494961,0.51322213,99495.0,99494.0,0.15305915]
[1737969495803,0.51322213,99495.0,99494.0,0.00229715]
[1737969496235,0.51322213,99495.0,99494.0,0.15305915]
[1737969496730,0.51322213,99495.0,99494.0,0.00229715]
[1737969497137,0.51322213,99495.0,99494.0,0.00029715]
[1737969497691,1.15802563,99495.0,99494.0,0.00029715]
[1737969497897,1.24042563,99495.0,99494.0,0.00029715]
[1737969499400,1.08966463,99495.0,99494.0,0.00029715]
[1737969499993,1.00726463,99495.0,99494.0,0.15105915]
[1737969500156,0.9966302,99495.0,99494.0,0.15105915]
[1737969500364,1.00726463,99495.0,99494.0,0.00029715]
[1737969500567,1.00726463,99495.0,99494.0,0.15105915]
[1737969502048,1.00726463,99495.0,99494.0,0.00029715]
[1737969502456,1.15802563,99495.0,99494.0,0.00029715]
[1737969502606,1.23592563,99495.0,99494.0,0.00029715]
[1737969502809,1.28392563,99495.0,99494.0,0.00029715]
[1737969503413,1.4959203,99495.0,99494.0,0.00029715]
[1737969507839,2.59826759,99495.0,99494.0,0.00029715]
[1737969508035,2.59826759,99495.0,99487.0,0.44406785]
[1737969508036,0.01063443,99488.0,99487.0,0.44406785]
[1737969508233,0.01063443,99488.0,99487.0,0.40515706]
[1737969508234,2.62812989,99488.0,99487.0,0.40515706]
[1737969510074,2.60812989,99488.0,99487.0,0.40515706]
[1737969510276,2.59812989,99488.0,99487.0,0.40515706]
[1737969510485,2.58749546,99488.0,99487.0,0.40515706]
[1737969510713,2.61812989,99488.0,99487.0,0.40515706]
[1737969510943,2.58749546,99488.0,99487.0,0.40515706]
[1737969511354,2.61812989,99488.0,99487.0,0.40515706]
[1737969511560,2.62816938,99488.0,99487.0,0.40515706]
[1737969512617,2.60816938,99488.0,99487.0,0.40515706]
[1737969512819,2.62816938,99488.0,99487.0,0.40515706]
[1737969513424,2.63816938,99488.0,99487.0,0.40515706]
[1737969513640,2.70228277,99488.0,99487.0,0.40515706]
[1737969513844,2.63816938,99488.0,99487.0,0.40515706]
[1737969516351,2.66116938,99488.0,99487.0,0.37230533]
[1737969516556,0.34142443,99476.0,99432.0,0.150855]
[1737969516766,1.06521172,99476.0,99430.0,0.150859]
[1737969516970,0.41919614,99475.0,99422.0,0.150871]
[1737969517244,0.01063443,99423.0,99422.0,0.150872]
[1737969517447,0.150873,99421.0,99420.0,0.00029694]
[1737969517654,0.50244,99421.0,99420.0,0.00029694]
[1737969517853,0.66394743,99421.0,99420.0,0.00029694]
[1737969518296,0.51307443,99421.0,99420.0,0.00029694]
[1737969518653,0.51307443,99421.0,99420.0,0.00078987]
[1737969518944,0.51307443,99421.0,99420.0,0.15166487]
[1737969519055,0.51307443,99421.0,99420.0,0.00078987]
[1737969519875,0.51307443,99421.0,99420.0,0.15366487]
[1737969520069,0.50244,99421.0,99420.0,0.15379416]
[1737969520283,0.50244,99421.0,99420.0,0.17679416]
[1737969520484,0.50244,99421.0,99420.0,0.27214145]
[1737969520689,0.50244,99421.0,99420.0,1.77214145]
[1737969521316,0.80459217,99421.0,99420.0,1.77214145]
[1737969521781,0.80459217,99421.0,99420.0,1.77314145]
[1737969521782,0.8152266,99421.0,99420.0,1.77314145]
[1737969521980,0.80459217,99421.0,99420.0,0.27314145]
[1737969522135,0.8152266,99421.0,99420.0,0.15279416]
[1737969522542,0.8152266,99421.0,99420.0,0.15479416]
[1737969522903,0.8152266,99421.0,99420.0,0.15279416]
[1737969523251,0.80459217,99421.0,99420.0,0.15179416]
[1737969523683,0.8152266,99421.0,99420.0,0.15179416]
[1737969524761,0.8152266,99421.0,99420.0,0.15166487]
[1737969525346,0.8152266,99421.0,99420.0,0.15179416]
[1737969525542,0.8152266,99421.0,99420.0,0.15166487]
[1737969525746,0.8152266,99421.0,99420.0,0.15179416]
[1737969525949,0.8152266,99421.0,99420.0,0.15166487]
[1737969529099,0.8152266,99421.0,99420.0,0.15166487]
[1737969530939,0.9660996,99421.0,99420.0,0.00078987]
[1737969531148,0.8152266,99421.0,99420.0,0.15166487]
[1737969531325,0.8152266,99421.0,99420.0,0.15126487]
[1737969531526,0.8152266,99421.0,99420.0,0.00038987]
[1737969531730,0.8152266,99421.0,99420.0,0.15126487]
[1737969534358,0.80459217,99421.0,99420.0,0.15139416]
[1737969534667,0.8152266,99421.0,99420.0,0.15139416]
[1737969536274,0.80459217,99421.0,99420.0,0.15139416]
[1737969537724,0.25863818,99421.0,99420.0,0.8822183]
[1737969537924,0.30215217,99444.0,99443.0,0.42996929]
[1737969538133,0.30244932,99474.0,99473.0,0.150794]
[1737969538299,0.30244932,99474.0,99473.0,0.15092329]
[1737969538499,0.30244932,99474.0,99473.0,0.150794]
[1737969538708,0.30244932,99474.0,99473.0,0.15092329]
[1737969538910,0.81573375,99474.0,99473.0,0.150794]
[1737969539311,0.50294715,99474.0,99473.0,1.01431058]
[1737969539512,0.50294715,99474.0,99473.0,1.47869758]
[1737969539683,0.50294715,99474.0,99473.0,1.08787845]
[1737969540331,0.50294715,99474.0,99473.0,0.62144045]
[1737969540536,0.50294715,99474.0,99473.0,0.42166045]
[1737969540740,0.50294715,99474.0,99473.0,0.59405045]
[1737969540950,0.50394715,99474.0,99473.0,0.59405045]
[1737969541553,0.50394715,99474.0,99473.0,0.60105045]
[1737969541775,0.50294715,99474.0,99473.0,0.60105045]
[1737969542005,0.50294715,99474.0,99473.0,0.61136248]
[1737969542216,0.50294715,99474.0,99473.0,0.61436248]
[1737969543177,0.48284115,99474.0,99473.0,0.61436248]
[1737969543377,0.40241715,99474.0,99473.0,0.61136248]
[1737969543583,0.30215217,99487.0,99486.0,0.300774]
[1737969543783,0.30215217,99487.0,99486.0,0.42112129]
[1737969545005,0.30215217,99487.0,99486.0,0.42125058]
[1737969545362,0.30215217,99487.0,99486.0,0.42225058]
[1737969545683,0.30215217,99487.0,99486.0,0.43541293]
[1737969553876,0.30215217,99487.0,99486.0,0.16493635]
[1737969554215,0.30215217,99487.0,99486.0,0.154774]
[1737969554381,0.3127866,99487.0,99486.0,0.004]
[1737969554800,0.3127866,99487.0,99478.0,0.201048]
[1737969554801,0.01063443,99485.0,99478.0,0.00012929]
[1737969555064,0.01063443,99485.0,99473.0,0.00038987]
[1737969555271,0.01063443,99485.0,99482.0,0.15078]
[1737969555442,0.01063443,99485.0,99478.0,0.00012929]
[1737969555639,0.01063443,99485.0,99481.0,0.150781]
[1737969555861,0.01063443,99485.0,99481.0,0.150782]
[1737969556019,0.01063443,99485.0,99484.0,0.150777]
[1737969556223,0.01063443,99485.0,99482.0,0.201041]
[1737969556425,0.30329377,99487.0,99486.0,0.17390329]
[1737969556660,0.30329377,99487.0,99486.0,0.27125058]
[1737969557205,0.30329377,99487.0,99486.0,0.27112129]
[1737969557206,0.30229377,99487.0,99486.0,0.27112129]
[1737969557421,0.30229377,99487.0,99486.0,0.150774]
[1737969557628,0.30202741,99487.0,99486.0,0.150774]
[1737969557833,0.0807,99484.0,99483.0,0.01148]
[1737969558040,0.01063443,99481.0,99474.0,0.150793]
[1737969558246,0.16142743,99474.0,99473.0,0.00038987]
[1737969560396,0.16242743,99474.0,99473.0,0.00038987]
[1737969560966,0.16142743,99474.0,99473.0,0.00038987]
[1737969561374,0.16542743,99474.0,99473.0,0.00038987]
[1737969561755,0.16442743,99474.0,99473.0,0.00038987]
[1737969561899,0.16142743,99474.0,99473.0,0.00038987]
[1737969562108,0.16242743,99474.0,99473.0,0.00038987]
[1737969562341,0.16642743,99474.0,99473.0,0.00038987]
[1737969562969,0.46831324,99474.0,99473.0,0.00038987]
[1737969563550,0.46731324,99474.0,99473.0,0.00038987]
[1737969563775,0.46731324,99474.0,99473.0,0.15118387]
[1737969563776,0.31652024,99474.0,99473.0,0.15118387]
[1737969564129,0.31752024,99474.0,99473.0,0.15118387]
[1737969564510,0.31652024,99474.0,99473.0,0.15118387]
[1737969564654,0.31252024,99474.0,99473.0,0.00038987]
[1737969564863,0.31652024,99474.0,99473.0,0.00038987]
[1737969565082,0.31652024,99474.0,99473.0,0.15118387]
[1737969565413,0.31252024,99474.0,99473.0,0.00038987]
[1737969565623,0.31452024,99474.0,99473.0,0.15118387]
[1737969565791,0.31452024,99474.0,99473.0,0.00038987]
[1737969566172,0.46531324,99474.0,99473.0,0.00038987]
[1737969567272,0.31452024,99474.0,99473.0,0.00038987]
[1737969567724,0.31552024,99474.0,99473.0,0.15118387]
[1737969567886,0.31352024,99474.0,99473.0,0.00038987]
[1737969568090,0.31552024,99474.0,99473.0,0.00038987]
[1737969568292,0.46531324,99474.0,99473.0,0.00038987]
[1737969568512,0.46631324,99474.0,99473.0,0.00038987]
[1737969568715,0.54661324,99474.0,99473.0,0.00038987]
[1737969568973,0.64396053,99474.0,99473.0,0.00038987]
[1737969569173,1.7109552,99474.0,99473.0,0.00038987]
[1737969569342,2.4115052,99474.0,99473.0,0.00038987]
[1737969569558,2.42137591,99474.0,99473.0,0.00038987]
[1737969570028,2.42137591,99474.0,99443.0,0.201118]
[1737969570029,0.09093443,99444.0,99443.0,0.150839]
[1737969570231,0.89508037,99444.0,99443.0,0.15098674]
[1737969570554,1.04591837,99444.0,99443.0,0.00014774]
[1737969571536,1.04591837,99444.0,99443.0,0.00214774]
[1737969571953,1.04691837,99444.0,99443.0,0.00014774]
[1737969572163,0.89708037,99444.0,99443.0,0.00014774]
[1737969572590,0.89708037,99444.0,99443.0,0.15098774]
[1737969572807,0.81678037,99444.0,99443.0,0.15098774]
[1737969573015,0.80614594,99444.0,99443.0,0.15098774]
[1737969573224,0.80614594,99444.0,99443.0,0.15111703]
[1737969573405,0.80614594,99444.0,99443.0,1.65111703]
[1737969573854,0.80414594,99444.0,99443.0,1.65111703]
[1737969574099,0.80414594,99444.0,99443.0,0.15211703]
[1737969574509,0.80414594,99444.0,99443.0,0.15111703]
[1737969574724,0.80414594,99444.0,99443.0,0.15511703]
[1737969575146,0.80414594,99444.0,99443.0,0.15211703]
[1737969575352,0.80414594,99444.0,99443.0,0.15611703]
[1737969575524,0.80414594,99444.0,99443.0,0.15511703]
[1737969575727,0.80414594,99444.0,99443.0,0.15611703]
[1737969576721,0.80414594,99444.0,99443.0,0.15211703]
[1737969577135,0.80414594,99444.0,99443.0,0.15411703]
[1737969577335,0.80414594,99444.0,99443.0,0.15511703]
[1737969577713,0.80414594,99444.0,99443.0,0.15211703]
[1737969577918,0.80414594,99444.0,99443.0,0.15111703]
[1737969578120,0.80414594,99444.0,99443.0,0.15411703]
[1737969578325,0.80414594,99444.0,99443.0,0.15808803]
[1737969578727,0.80414594,99444.0,99443.0,0.15908803]
[1737969580630,0.80414594,99444.0,99443.0,0.15925589]
[1737969580761,0.81478037,99444.0,99443.0,0.00841589]
[1737969580970,0.89248037,99444.0,99443.0,0.00841589]
[1737969581362,0.01063443,99439.0,99438.0,0.201129]
[1737969581563,0.51328443,99439.0,99438.0,0.201129]
[1737969583545,0.50265,99439.0,99438.0,0.201129]
[1737969583881,0.51428443,99439.0,99438.0,0.201129]
[1737969584836,0.51328443,99439.0,99438.0,0.201129]
[1737969585041,0.51428443,99439.0,99438.0,0.201129]
[1737969585473,0.51328443,99439.0,99438.0,0.201129]
[1737969585943,0.51428443,99439.0,99438.0,0.201129]
[1737969586695,0.81578037,99439.0,99438.0,1.201129]
[1737969586908,0.81678037,99439.0,99438.0,1.0]
[1737969587104,0.81678037,99439.0,99438.0,1.150847]
[1737969587304,0.81678037,99439.0,99438.0,1.0]
[1737969587750,1.40326833,99439.0,99438.0,1.0]
[1737969587958,1.42206249,99439.0,99438.0,1.0]
[1737969588714,1.40326833,99439.0,99438.0,1.0]
[1737969589825,1.41310519,99439.0,99438.0,1.0]
[1737969590048,1.41210519,99439.0,99438.0,1.0]
[1737969590560,1.41510519,99439.0,99438.0,1.0]
[1737969591328,1.41410519,99439.0,99438.0,1.0]
[1737969591610,1.41610519,99439.0,99438.0,1.0]
[1737969592284,1.40547076,99439.0,99438.0,1.0]
[1737969592529,2.27110519,99439.0,99438.0,1.0]
[1737969594026,2.27110519,99439.0,99438.0,1.00029736]
[1737969595314,1.02114061,99439.0,99438.0,1.15114436]
[1737969595515,1.03177504,99439.0,99438.0,0.99996049]
[1737969595940,1.03077504,99439.0,99438.0,0.99996049]
[1737969596295,1.02877504,99439.0,99438.0,0.99996049]
[1737969596497,1.02577504,99439.0,99438.0,0.99996049]
[1737969596864,1.02577504,99439.0,99438.0,0.84911349]
[1737969597103,1.25402104,99439.0,99438.0,0.84911349]
[1737969597682,1.29952104,99439.0,99438.0,0.84911349]
[1737969598150,1.4070463,99439.0,99438.0,0.84911349]
[1737969598329,1.41456229,99439.0,99438.0,0.84911349]
[1737969598575,1.56456229,99439.0,99438.0,0.84911349]
[1737969599561,1.5833582,99439.0,99438.0,0.84911349]
[1737969599763,1.5863582,99439.0,99438.0,0.84911349]
[1737969599966,1.60394925,99439.0,99438.0,0.84911349]
[1737969600342,1.60394925,99439.0,99438.0,0.85011349]
[1737969600343,1.58151891,99439.0,99438.0,0.85011349]
[1737969600571,1.59215334,99439.0,99438.0,0.85011349]
[1737969600778,1.59515334,99439.0,99438.0,0.85011349]
[1737969601464,2.14114141,99439.0,99438.0,0.54861755]
[1737969604421,2.13128087,99439.0,99438.0,0.54861755]
[1737969607609,2.66538087,99439.0,99438.0,0.54861755]
[1737969607809,2.66552247,99439.0,99438.0,0.54861755]
[1737969610041,2.66552247,99439.0,99438.0,0.42434768]
[1737969610042,2.69539318,99439.0,99438.0,0.42434768]
[1737969611072,2.69239318,99439.0,99438.0,0.42334768]
[1737969611296,2.68539318,99439.0,99438.0,0.42334768]
[1737969611409,2.65875875,99439.0,99438.0,0.42334768]
[1737969611603,2.65952247,99439.0,99438.0,0.42334768]
[1737969611851,2.53959682,99439.0,99438.0,0.42334768]
[1737969612061,2.37896239,99439.0,99438.0,0.42334768]
[1737969612397,2.35837134,99439.0,99438.0,0.42334768]
[1737969612590,2.32350577,99439.0,99438.0,0.42334768]
[1737969612795,2.16865977,99439.0,99438.0,0.42334768]
[1737969613008,1.11810008,99439.0,99438.0,0.42334768]
[1737969613207,1.12310008,99439.0,99438.0,0.57419468]
[1737969613413,1.13073451,99439.0,99438.0,0.57419468]
[1737969613546,1.11810008,99439.0,99438.0,0.57419468]
[1737969613750,1.13473451,99439.0,99438.0,0.57419468]
[1737969613945,1.13073451,99439.0,99438.0,0.57419468]
[1737969614252,1.4635278,99439.0,99438.0,0.42334768]
[1737969614461,1.13273451,99439.0,99438.0,0.42334768]
[1737969614665,1.28158051,99439.0,99438.0,0.42334768]
[1737969614861,1.29165103,99439.0,99438.0,0.42334768]
[1737969615067,1.13073451,99439.0,99438.0,0.42334768]
[1737969615271,1.12010008,99439.0,99438.0,0.42334768]
[1737969615467,1.13073451,99439.0,99438.0,0.42334768]
[1737969615711,1.13073451,99439.0,99438.0,0.57419468]
[1737969616026,0.94154884,99439.0,99438.0,0.64619468]
[1737969616227,0.94154884,99439.0,99438.0,0.59719468]
[1737969616648,0.93954884,99439.0,99438.0,0.42334768]
[1737969616917,0.93754884,99439.0,99438.0,0.42334768]
[1737969617087,0.91873984,99439.0,99438.0,0.42334768]
[1737969617324,0.92073984,99439.0,99438.0,0.57419468]
[1737969617932,0.91873984,99439.0,99438.0,0.57419468]
[1737969618376,0.91973984,99439.0,99438.0,0.57419468]
[1737969618931,0.90910541,99439.0,99438.0,0.57419468]
[1737969619138,0.91973984,99439.0,99438.0,0.57419468]
[1737969619751,0.91873984,99439.0,99438.0,0.57419468]
[1737969619954,0.91673984,99439.0,99438.0,0.57419468]
[1737969620947,0.91673984,99439.0,99438.0,0.42334768]
[1737969621754,0.91773984,99439.0,99438.0,0.42334768]
[1737969623013,0.91673984,99439.0,99438.0,0.42334768]
[1737969623255,1.06758584,99439.0,99438.0,0.42334768]
[1737969623463,1.24313313,99439.0,99438.0,0.42334768]
[1737969623659,1.24113313,99439.0,99438.0,0.42334768]
[1737969623880,1.24013313,99439.0,99438.0,0.42334768]
[1737969624084,1.24613313,99439.0,99438.0,0.42334768]
[1737969624534,1.24213313,99439.0,99438.0,0.42334768]
[1737969624742,1.24013313,99439.0,99438.0,0.42334768]
[1737969624912,1.24213313,99439.0,99438.0,0.42334768]
[1737969625933,2.4641278,99439.0,99438.0,0.42334768]
[1737969626135,0.46227214,99425.0,99419.0,0.00029715]
[1737969626400,0.46227214,99425.0,99414.0,0.00029715]
[1737969626401,0.01063443,99415.0,99414.0,0.00029715]
[1737969626606,0.15,99407.0,99376.0,0.352195]
[1737969626824,0.40887772,99406.0,99405.0,0.00079027]
[1737969626985,0.78074153,99406.0,99405.0,0.00079027]
[1737969627223,0.63074153,99406.0,99405.0,0.00079027]
[1737969628271,0.63274153,99406.0,99405.0,0.00079027]
[1737969628630,0.89789824,99406.0,99405.0,0.17481656]
[1737969628832,1.04879424,99406.0,99405.0,0.00079027]
[1737969629241,1.05179424,99406.0,99405.0,0.00079027]
[1737969629443,1.04679424,99406.0,99405.0,0.00079027]
[1737969629868,1.05479424,99406.0,99405.0,0.00079027]
[1737969630187,1.04979424,99406.0,99405.0,0.00079027]
[1737969630402,1.05696338,99406.0,99405.0,0.00079027]
[1737969630607,1.06096338,99406.0,99405.0,0.00079027]
[1737969631067,1.04979424,99406.0,99405.0,0.00079027]
[1737969631380,1.05279424,99406.0,99405.0,0.00079027]
[1737969631926,1.05582375,99406.0,99405.0,0.00079027]
[1737969632635,1.05282375,99406.0,99405.0,0.00079027]
[1737969632839,1.05882375,99406.0,99405.0,0.00179027]
[1737969633215,1.05982375,99406.0,99405.0,0.00179027]
[1737969633427,1.05982375,99406.0,99405.0,0.001]
[1737969633636,1.05882375,99406.0,99405.0,0.001]
[1737969633823,1.06883154,99406.0,99405.0,0.001]
[1737969634032,1.06119711,99406.0,99405.0,0.001]
[1737969634796,1.06093053,99406.0,99405.0,0.001]
[1737969635201,1.05092274,99406.0,99405.0,0.001]
[1737969635418,0.90002674,99406.0,99405.0,0.001]
[1737969635642,0.90002674,99406.0,99405.0,0.151897]
[1737969635827,0.91066117,99406.0,99405.0,0.174897]
[1737969636036,0.91066117,99406.0,99405.0,0.001]
[1737969636223,1.15890446,99406.0,99405.0,0.001]
[1737969636425,1.23470446,99406.0,99405.0,0.001]
[1737969636805,0.16154743,99395.0,99394.0,0.00029715]
[1737969637017,0.89563166,99395.0,99394.0,0.00044502]
[1737969637247,0.90176699,99395.0,99394.0,0.00044502]
[1737969637454,1.37582728,99395.0,99394.0,0.00044502]
[1737969638534,1.38769799,99395.0,99394.0,0.00044502]
[1737969638724,1.38569799,99395.0,99394.0,0.00044502]
[1737969639131,1.4017041,99395.0,99394.0,0.001]
[1737969639339,1.38119896,99395.0,99394.0,0.001]
[1737969639548,1.39283339,99395.0,99394.0,0.001]
[1737969639763,1.24283339,99395.0,99394.0,0.001]
[1737969639971,1.24183339,99395.0,99394.0,0.001]
[1737969640422,1.23050391,99395.0,99394.0,0.001]
[1737969641679,0.16154843,99394.0,99369.0,0.0009839]
[1737969641913,0.63049295,99394.0,99370.0,0.023]
[1737969642120,0.6366089,99394.0,99370.0,0.023]
[1737969642540,0.64647961,99394.0,99369.0,0.0009839]
[1737969642756,0.65533717,99394.0,99369.0,0.0009839]
[1737969642964,0.65733717,99394.0,99369.0,0.0009839]
[1737969643141,1.17810769,99394.0,99366.0,0.023]
[1737969643341,1.18310769,99394.0,99367.0,0.150954]
[1737969643591,1.18310769,99394.0,99366.0,0.150956]
[1737969643716,1.18310769,99394.0,99365.0,0.173958]
[1737969643909,1.18310769,99394.0,99364.0,0.0009915]
[1737969644158,1.1929784,99394.0,99364.0,0.0009915]
[1737969644360,0.16155743,99388.0,99364.0,0.0009915]
[1737969644503,0.63050195,99388.0,99364.0,0.1519505]
[1737969644703,0.63657848,99388.0,99364.0,0.0009915]
[1737969645114,0.65530675,99388.0,99365.0,0.023]
[1737969645316,0.64467232,99388.0,99369.0,0.150951]
[1737969645728,0.64467232,99388.0,99370.0,0.15095]
[1737969645942,0.55795946,99388.0,99370.0,0.023]
[1737969646167,0.56201048,99388.0,99370.0,0.023]
[1737969646373,0.5594456,99388.0,99372.0,0.150947]
[1737969646576,0.5604456,99388.0,99373.0,0.023]
[1737969646801,0.01063443,99371.0,99370.0,0.15095]
[1737969646999,0.86890218,99371.0,99370.0,0.17409799]
[1737969647196,0.86890218,99371.0,99370.0,0.00014799]
[1737969647409,1.02993474,99371.0,99370.0,0.00014799]
[1737969647610,0.87898574,99371.0,99370.0,0.00014799]
[1737969647853,1.02993474,99371.0,99370.0,0.00014799]
[1737969648058,0.87898574,99371.0,99370.0,0.00014799]
[1737969648269,1.03193474,99371.0,99370.0,0.00014799]
[1737969648781,1.02993922,99371.0,99370.0,0.00014799]
[1737969649935,1.02993922,99371.0,99355.0,0.00012929]
[1737969649936,0.150962,99363.0,99355.0,0.00012929]
[1737969650141,0.201277,99366.0,99351.0,0.0009919]
[1737969650142,0.01063443,99355.0,99351.0,0.0009919]
[1737969650348,0.482775,99362.0,99351.0,0.0009919]
[1737969650349,0.01063443,99352.0,99351.0,0.1519709]
[1737969650546,0.01063443,99352.0,99351.0,0.150979]
[1737969651373,0.01063443,99352.0,99351.0,0.173979]
[1737969652353,0.01063443,99353.0,99352.0,0.02312929]
[1737969652508,0.01063443,99355.0,99330.0,0.15958316]
[1737969652720,0.0769,99381.0,99361.0,0.150964]
[1737969652892,0.59544729,99380.0,99351.0,0.001]
[1737969653097,0.150949,99371.0,99360.0,0.150965]
[1737969653454,0.150953,99369.0,99360.0,0.150965]
[1737969653627,0.01063443,99362.0,99361.0,0.150964]
[1737969653841,0.01063443,99359.0,99355.0,0.201298]
[1737969653993,0.4981,99358.0,99357.0,0.15097]
[1737969654198,0.50804519,99358.0,99357.0,0.15097]
[1737969655925,0.50904519,99358.0,99357.0,0.15097]
[1737969656640,0.50655889,99358.0,99357.0,0.15097]
[1737969657624,0.50655889,99358.0,99357.0,0.17397]
[1737969658048,0.50655889,99358.0,99357.0,0.25107]
[1737969658466,0.50655889,99358.0,99357.0,0.1001]
[1737969658669,0.50655889,99358.0,99357.0,0.25107]
[1737969659177,0.50655889,99358.0,99357.0,0.17397]
[1737969659794,0.50655889,99358.0,99357.0,0.15097]
[1737969660024,0.51719332,99358.0,99357.0,0.17397]
[1737969660410,0.50655889,99358.0,99357.0,0.17397]
[1737969660838,0.51719332,99358.0,99357.0,0.17397]
[1737969661093,0.50655889,99358.0,99357.0,0.17397]
[1737969661675,0.50655889,99358.0,99357.0,0.023]
[1737969661855,0.50655889,99358.0,99357.0,0.17397]
[1737969662271,0.50655889,99358.0,99357.0,0.023]
[1737969662500,0.01063443,99334.0,99333.0,5e-07]
[1737969662706,0.16168243,99306.0,99300.0,0.05]
[1737969663029,1.17042204,99306.0,99300.0,0.05]
[1737969663149,1.26776933,99306.0,99300.0,0.05]
[1737969663350,1.35511047,99306.0,99300.0,0.05]
[1737969663600,1.45245776,99306.0,99300.0,0.05]
[1737969663766,1.95954019,99306.0,99305.0,6e-07]
[1737969663980,1.95954019,99306.0,99286.0,0.0009854]